bitfinex-derivatives/quotes_BTCF0:USTF0_20250921
["timestamp","ask_amount","ask_price","bid_price","bid_amount"]
[1758476351490,0.39297,115470.0,115460.0,0.64517705]
[1758476352591,0.39297,115470.0,115460.0,1.42981705]
[1758476357096,0.39297,115470.0,115460.0,0.64517705]
[1758476357496,0.39297,115470.0,115460.0,1.34322115]
[1758476357895,0.39297,115470.0,115460.0,1.07086]
[1758476358199,0.39297,115470.0,115460.0,0.28626]
[1758476358393,0.39297,115470.0,115460.0,1.07086]
[1758476359493,0.39297,115470.0,115460.0,1.34322115]
[1758476359696,0.39297,115470.0,115460.0,0.55862115]
[1758476359995,0.67931115,115470.0,115460.0,1.07086]
[1758476360188,0.67931115,115470.0,115460.0,1.05822]
[1758476361995,0.40695,115470.0,115460.0,1.05822]
[1758476362196,0.67931115,115470.0,115460.0,1.05822]
[1758476365008,0.40695,115470.0,115460.0,1.05822]
[1758476365200,0.67931115,115470.0,115460.0,1.05822]
[1758476368107,0.67931115,115470.0,115460.0,1.1447756]
[1758476368301,0.67931115,115470.0,115460.0,1.1586256]
[1758476372613,0.67931115,115470.0,115460.0,0.3740256]
[1758476372806,0.67931115,115470.0,115460.0,1.1585856]
[1758476374712,0.70349437,115470.0,115460.0,1.1585856]
[1758476379316,0.70349437,115470.0,115460.0,0.9085856]
[1758476381814,0.68951437,115470.0,115460.0,0.9085856]
[1758476382020,0.41715322,115470.0,115460.0,0.9085856]
[1758476382220,0.41715322,115470.0,115460.0,1.18094675]
[1758476388424,0.3708,115470.0,115460.0,1.18094675]
[1758476389334,0.39500575,115470.0,115460.0,1.18094675]
[1758476390731,0.41639575,115470.0,115460.0,1.45301126]
[1758476398239,0.39219,115470.0,115460.0,1.45301126]
[1758476400636,0.03139,115470.0,115460.0,1.45301126]
[1758476404142,0.05128944,115470.0,115460.0,1.45301126]
[1758476410842,0.05128944,115470.0,115460.0,0.66845126]
[1758476411042,0.05128944,115470.0,115460.0,1.45289126]
[1758476420252,0.05128944,115470.0,115460.0,0.1240256]
[1758476420448,0.05128944,115470.0,115460.0,1.45281126]
[1758476422246,0.32350227,115470.0,115460.0,1.45281126]
[1758476424449,0.3477012,115470.0,115460.0,1.45281126]
[1758476426759,0.07548837,115470.0,115460.0,1.45281126]
[1758476427158,0.05409837,115470.0,115460.0,1.45281126]
[1758476434460,0.02989944,115470.0,115460.0,1.45281126]
[1758476445275,0.05195944,115470.0,115460.0,0.66845126]
[1758476445475,0.05195944,115470.0,115460.0,1.45269126]
[1758476450583,0.05195944,115470.0,115460.0,1.18048513]
[1758476453480,0.01,115470.0,115460.0,1.55849973]
[1758476458191,0.01,115470.0,115460.0,0.77425973]
[1758476458394,0.01,115470.0,115460.0,1.55841973]
[1758476459289,0.01,115470.0,115460.0,0.77425973]
[1758476459492,0.01,115470.0,115460.0,1.55841973]
[1758476465499,0.01,115470.0,115460.0,1.55801973]
[1758476475109,0.01,115470.0,115460.0,0.5016402]
[1758476475308,0.01,115470.0,115460.0,1.2857202]
[1758476475603,0.01,115470.0,115460.0,1.55793973]
[1758476477008,0.01,115470.0,115460.0,1.55789973]
[1758476478214,0.01,115470.0,115460.0,0.77385973]
[1758476478408,0.01,115470.0,115460.0,1.55789973]
[1758476480016,0.01,115470.0,115460.0,1.2856802]
[1758476480206,0.01,115470.0,115460.0,1.55789973]
[1758476483613,0.01,115470.0,115460.0,1.2856802]
[1758476483813,0.01,115470.0,115460.0,1.55789973]
[1758476485620,0.03173,115470.0,115460.0,0.77385973]
[1758476485816,0.03173,115470.0,115460.0,1.55785973]
[1758476486518,0.03173,115470.0,115460.0,1.2856402]
[1758476486706,0.03173,115470.0,115460.0,1.55785973]
[1758476488624,0.03173,115470.0,115460.0,1.2856402]
[1758476488918,0.03173,115470.0,115460.0,1.55785973]
[1758476491621,0.01,115470.0,115460.0,1.55785973]
[1758476496316,0.03393586,115470.0,115460.0,1.55785973]
[1758476496914,0.03393586,115470.0,115460.0,1.19705973]
[1758476497120,0.03393586,115470.0,115460.0,1.55785973]
[1758476498426,0.03393586,115470.0,115460.0,1.2856402]
[1758476498617,0.03393586,115470.0,115460.0,1.55785973]
[1758476502723,0.01,115470.0,115460.0,1.55785973]
[1758476510533,0.01,115470.0,115460.0,1.83002384]
[1758476513141,0.03395962,115470.0,115460.0,1.83002384]
[1758476524533,0.01,115470.0,115460.0,1.83002384]
[1758476535152,0.01,115470.0,115460.0,1.2856402]
[1758476535349,0.01,115470.0,115460.0,1.83002384]
[1758476558469,0.01,115470.0,115460.0,2.10221566]
[1758476558671,0.01,115470.0,115460.0,1.83002384]
[1758476558970,0.01,115470.0,115460.0,2.10221566]
[1758476559366,0.01,115470.0,115460.0,1.83002384]
[1758476561173,0.0339312,115470.0,115460.0,1.83002384]
[1758476564567,0.01,115470.0,115460.0,1.83002384]
[1758476569776,0.01,115470.0,115460.0,2.10221566]
[1758476572579,0.01,115470.0,115460.0,1.5577834]
[1758476574275,0.01,115470.0,115460.0,1.55798052]
[1758476578981,0.01,115470.0,115460.0,1.91878052]
[1758476591584,0.01,115470.0,115460.0,0.86263732]
[1758476591887,0.03161,115470.0,115460.0,1.13478052]
[1758476592283,0.03161,115470.0,115460.0,1.91950052]
[1758476599494,0.01,115470.0,115460.0,1.91950052]
[1758476622602,0.01,115470.0,115460.0,1.19790052]
[1758476622805,0.01,115470.0,115460.0,1.55870052]
[1758476626705,0.04518,115470.0,115460.0,0.50183722]
[1758476627006,0.3173232,115470.0,115460.0,1.29451722]
[1758476627204,0.04518,115470.0,115460.0,1.56666042]
[1758476630510,0.03142,115470.0,115460.0,1.56666042]
[1758476632705,0.03142,115470.0,115460.0,1.83885788]
[1758476633004,0.01,115470.0,115460.0,1.83885788]
[1758476642215,0.01,115470.0,115460.0,1.04657788]
[1758476642414,0.01,115470.0,115460.0,1.84005788]
[1758476658827,0.01,115470.0,115460.0,2.11222821]
[1758476664436,0.01,115470.0,115460.0,2.47302821]
[1758476677540,0.01,115470.0,115460.0,1.67954821]
[1758476677739,0.01,115470.0,115460.0,2.47146821]
[1758476681549,0.01,115470.0,115460.0,2.47154821]
[1758476687951,0.01,115470.0,115460.0,1.74994821]
[1758476688149,0.01,115470.0,115460.0,2.47154821]
[1758476692554,0.01,115470.0,115460.0,1.74994821]
[1758476692754,0.01,115470.0,115460.0,2.47154821]
[1758476694154,0.01,115470.0,115460.0,2.47196833]
[1758476694556,0.01,115470.0,115460.0,2.19968352]
[1758476695656,0.01,115470.0,115460.0,2.46358352]
[1758476696153,0.01,115470.0,115460.0,2.19968352]
[1758476700058,0.01,115470.0,115460.0,1.40768352]
[1758476700257,0.01,115470.0,115460.0,2.19784352]
[1758476700460,0.01,115470.0,115460.0,1.40768352]
[1758476700654,0.01,115470.0,115460.0,2.19784352]
[1758476702861,0.01,115470.0,115460.0,2.19760352]
[1758476705155,0.01,115470.0,115460.0,2.44760352]
[1758476705753,0.01,115470.0,115460.0,4.27180352]
[1758476713560,0.01,115470.0,115460.0,4.38025891]
[1758476713764,0.01,115470.0,115460.0,3.83603273]
[1758476714066,0.01,115470.0,115460.0,3.72793734]
[1758476714264,0.01,115470.0,115460.0,4.27216352]
[1758476714660,0.01,115470.0,115460.0,4.53606352]
[1758476714962,0.01,115470.0,115460.0,4.64451891]
[1758476715364,0.01,115470.0,115460.0,4.53606352]
[1758476717067,0.01,115470.0,115460.0,4.64451891]
[1758476720168,0.01,115470.0,115460.0,4.53606352]
[1758476724177,0.01,115470.0,115460.0,4.64451891]
[1758476731782,0.01,115470.0,115460.0,3.85423891]
[1758476731982,0.01,115470.0,115460.0,4.64559891]
[1758476738684,0.01,115470.0,115460.0,3.85423891]
[1758476738884,0.01,115470.0,115460.0,4.64523891]
[1758476739285,0.01,115470.0,115460.0,4.39523891]
[1758476742884,0.01,115470.0,115460.0,3.67363891]
[1758476743089,0.01,115470.0,115460.0,4.39523891]
[1758476744894,0.01,115470.0,115460.0,4.28678352]
[1758476754800,0.01,115470.0,115460.0,4.55879131]
[1758476756599,0.01,115470.0,115460.0,4.66778845]
[1758476764005,0.003,115470.0,115460.0,4.66778845]
[1758476764210,0.0004,115490.0,115480.0,0.1221518]
[1758476764404,0.0004,115490.0,115480.0,2.46671058]
[1758476765105,0.01295,115510.0,115500.0,0.1083868]
[1758476765106,0.04387819,115510.0,115500.0,0.1083868]
[1758476765304,0.04467819,115510.0,115500.0,1.80234278]
[1758476766009,0.03092819,115510.0,115500.0,1.81619278]
[1758476766200,0.03132819,115510.0,115500.0,1.81619278]
[1758476766902,0.03532819,115510.0,115500.0,1.81719278]
[1758476767611,0.03732819,115510.0,115500.0,1.81719278]
[1758476771916,0.05025819,115510.0,115500.0,1.81719278]
[1758476780724,0.03732819,115510.0,115500.0,1.81719278]
[1758476784729,0.06155934,115510.0,115500.0,1.81719278]
[1758476787431,0.03732819,115510.0,115500.0,1.81719278]
[1758476796032,0.03732819,115510.0,115500.0,1.81539278]
[1758476796435,0.03692819,115510.0,115500.0,1.81539278]
[1758476796834,0.04052819,115510.0,115500.0,1.81899278]
[1758476801237,0.04052819,115510.0,115500.0,1.2748368]
[1758476801534,0.04052819,115510.0,115500.0,1.81899278]
[1758476810941,0.04052819,115510.0,115500.0,1.2748368]
[1758476811141,0.04052819,115510.0,115500.0,1.81899278]
[1758476816557,0.04052819,115510.0,115500.0,1.81882606]
[1758476816741,0.04052819,115510.0,115500.0,1.81822606]
[1758476816947,0.04052819,115510.0,115500.0,1.54623143]
[1758476817455,0.04052819,115510.0,115500.0,1.2742368]
[1758476817656,0.04052819,115510.0,115500.0,1.54623143]
[1758476820057,0.04052819,115510.0,115500.0,0.75963143]
[1758476820460,0.04052819,115510.0,115500.0,1.54619143]
[1758476828371,0.04052819,115510.0,115500.0,1.2741968]
[1758476828563,0.05359819,115510.0,115500.0,1.2741968]
[1758476828862,0.05359819,115510.0,115500.0,1.54619143]
[1758476829569,0.04052819,115510.0,115500.0,1.54619143]
[1758476831771,0.05445819,115510.0,115500.0,0.75963143]
[1758476832073,0.05445819,115510.0,115500.0,1.53246143]
[1758476836874,0.05445819,115510.0,115500.0,1.54631143]
[1758476845082,0.04052819,115510.0,115500.0,1.54631143]
[1758476845374,0.04052819,115510.0,115500.0,1.81830606]
[1758476857892,0.03692819,115510.0,115500.0,1.81470606]
[1758476861997,0.04052819,115510.0,115500.0,1.81830606]
[1758476878516,0.04052819,115510.0,115500.0,1.5463134]
[1758476878722,0.04052819,115510.0,115500.0,1.81831]
[1758476879519,0.04052819,115510.0,115500.0,1.45751]
[1758476879718,0.04052819,115510.0,115500.0,1.81831]
[1758476879916,0.04052819,115510.0,115500.0,0.4876368]
[1758476880122,0.04052819,115510.0,115500.0,1.81803]
[1758476881521,0.04052819,115510.0,115500.0,1.81983]
[1758476882514,0.04052819,115510.0,115500.0,1.82107]
[1758476884229,0.04044819,115510.0,115500.0,1.82103]
[1758476886825,0.04044819,115510.0,115500.0,1.83827923]
[1758476887523,0.04044819,115510.0,115500.0,1.04883923]
[1758476887723,0.04044819,115510.0,115500.0,1.29384603]
[1758476887924,0.04044819,115510.0,115500.0,1.83775923]
[1758476899032,0.04036819,115510.0,115500.0,1.83763923]
[1758476908056,0.01841819,115510.0,115500.0,1.83763923]
[1758476913859,0.01837819,115510.0,115500.0,1.83759923]
[1758476922862,0.01477819,115510.0,115500.0,1.83399923]
[1758476925658,0.006,115510.0,115500.0,2.10599583]
[1758476926166,0.0064,115510.0,115500.0,2.10599583]
[1758476926350,0.006,115510.0,115500.0,2.10599583]
[1758476926869,0.0096,115510.0,115500.0,2.10959583]
[1758476928567,0.01,115510.0,115500.0,2.10959583]
[1758476934162,0.01,115510.0,115500.0,2.37349583]
[1758476934373,0.0009,115530.0,115520.0,0.03524]
[1758476934569,0.0001,115530.0,115520.0,2.10301353]
[1758476934761,0.0005,115530.0,115520.0,2.10301353]
[1758476935160,0.0001,115530.0,115520.0,1.04437693]
[1758476935365,0.0005,115530.0,115520.0,1.83101693]
[1758476935670,0.0061,115530.0,115520.0,1.83201693]
[1758476935974,0.0065,115530.0,115520.0,1.83201693]
[1758476936374,0.0105,115530.0,115520.0,1.83201693]
[1758476936563,0.0105,115530.0,115520.0,2.27044264]
[1758476936869,0.0025,115530.0,115520.0,2.54443924]
[1758476938463,0.0025,115530.0,115520.0,2.46681353]
[1758476938665,0.0025,115530.0,115520.0,2.19454059]
[1758476940263,0.0025,115530.0,115520.0,2.19446059]
[1758476940672,0.0025,115530.0,115520.0,1.40790059]
[1758476940974,0.0025,115530.0,115520.0,2.19446059]
[1758476941272,0.0025,115530.0,115520.0,2.19442059]
[1758476942273,0.0025,115530.0,115520.0,1.47736716]
[1758476942472,0.0025,115530.0,115520.0,2.26388716]
[1758476943771,0.0025,115530.0,115520.0,2.27273857]
[1758476944370,0.00242,115530.0,115520.0,2.35036428]
[1758476946074,0.00242,115530.0,115520.0,2.61426428]
[1758476947374,0.00242,115530.0,115520.0,2.53663857]
[1758476951180,0.00242,115530.0,115520.0,1.75011857]
[1758476951475,0.00242,115530.0,115520.0,2.53655857]
[1758476959384,0.00242,115530.0,115520.0,2.53647857]
[1758476963387,0.00242,115530.0,115520.0,2.61410428]
[1758476964290,0.0024,115530.0,115520.0,2.61410428]
[1758476965082,0.0024,115530.0,115520.0,2.53647857]
[1758476971396,0.0024,115530.0,115520.0,2.61410428]
[1758476971595,0.0025,115530.0,115520.0,2.61410428]
[1758476974991,0.0025,115530.0,115520.0,2.53647857]
[1758476975195,0.0025,115530.0,115520.0,2.64547571]
[1758476977100,0.0025,115530.0,115520.0,2.53647857]
[1758476978297,0.0025,115530.0,115520.0,2.64547571]
[1758476982302,0.0025,115530.0,115520.0,1.92387571]
[1758476982506,0.0025,115530.0,115520.0,2.64547571]
[1758476984604,0.0021,115530.0,115520.0,2.64547571]
[1758476984798,0.0025,115530.0,115520.0,2.64547571]
[1758476987607,0.0025,115530.0,115520.0,2.38157571]
[1758476989210,0.0025,115530.0,115520.0,2.64547571]
[1758476989508,0.0021,115530.0,115520.0,2.64547571]
[1758476990005,0.0025,115530.0,115520.0,2.64547571]
[1758476993312,0.0025,115530.0,115520.0,1.85911571]
[1758476993519,0.0025,115530.0,115520.0,2.64519571]
[1758476994117,0.0025,115530.0,115520.0,1.93672079]
[1758476994324,0.0208235,115550.0,115540.0,0.1210373]
[1758476994516,0.0207235,115550.0,115540.0,1.53977573]
[1758476994822,0.0203235,115550.0,115540.0,1.53977573]
[1758476995520,0.0213235,115550.0,115540.0,1.53977573]
[1758476995720,0.0213235,115550.0,115540.0,1.54277573]
[1758476996515,0.0213235,115550.0,115540.0,1.62037338]
[1758476997214,0.0213235,115550.0,115540.0,1.54277573]
[1758476998324,0.0213235,115550.0,115540.0,1.62037338]
[1758476998825,0.0213235,115550.0,115540.0,1.62029338]
[1758476999322,0.0213235,115550.0,115540.0,1.54269573]
[1758477000313,0.0213235,115550.0,115540.0,1.62029338]
[1758477000517,0.0213235,115550.0,115540.0,2.16373982]
[1758477001125,0.0213235,115550.0,115540.0,1.37773982]
[1758477001325,0.0213235,115550.0,115540.0,2.16373982]
[1758477002324,0.0213235,115550.0,115540.0,2.08614217]
[1758477004031,0.0213235,115550.0,115540.0,1.30014217]
[1758477004223,0.0212835,115550.0,115540.0,2.08610217]
[1758477007029,0.0208835,115550.0,115540.0,2.08610217]
[1758477007329,0.0212835,115550.0,115540.0,2.08610217]
[1758477011132,0.0212835,115550.0,115540.0,2.44690217]
[1758477019638,0.0212835,115550.0,115540.0,2.52449982]
[1758477019834,0.0213835,115550.0,115540.0,2.52449982]
[1758477037455,0.0213835,115550.0,115540.0,1.80289982]
[1758477037654,0.0213835,115550.0,115540.0,2.52449982]
[1758477040056,0.0209835,115550.0,115540.0,2.52449982]
[1758477040560,0.0213835,115550.0,115540.0,2.52449982]
[1758477046653,0.0015,115550.0,115540.0,2.52449982]
[1758477055171,0.0015,115550.0,115540.0,2.44690217]
[1758477062778,0.0015,115550.0,115540.0,1.90334244]
[1758477064881,0.0015,115550.0,115540.0,1.98094009]
[1758477077283,0.0015,115550.0,115540.0,1.25934009]
[1758477077480,0.0015,115550.0,115540.0,1.98094009]
[1758477084183,0.0015,115550.0,115540.0,2.25268523]
[1758477084589,0.0011,115550.0,115540.0,2.17508758]
[1758477084784,0.0015,115550.0,115540.0,2.17508758]
[1758477085182,0.0015,115550.0,115540.0,2.5165854]
[1758477085585,0.0011,115550.0,115540.0,2.43898758]
[1758477085785,0.0015,115550.0,115540.0,2.43898758]
[1758477085986,0.0015,115550.0,115540.0,2.54798472]
[1758477087494,0.0011,115550.0,115540.0,2.54798472]
[1758477087791,0.0015,115550.0,115540.0,2.54798472]
[1758477088185,0.0005,115550.0,115540.0,2.54498472]
[1758477088386,0.0005,115550.0,115540.0,2.54998472]
[1758477092888,0.0009,115570.0,115560.0,0.1225624]
[1758477093088,0.02119,115590.0,115580.0,0.1225474]
[1758477093290,0.02189,115590.0,115580.0,1.53997254]
[1758477093684,0.02109,115590.0,115580.0,1.53997254]
[1758477093890,0.02999448,115590.0,115580.0,1.53997254]
[1758477094093,0.40260633,115600.0,115590.0,0.1225399]
[1758477094389,0.40260633,115600.0,115590.0,0.39428504]
[1758477094590,0.40180633,115600.0,115590.0,0.39428504]
[1758477094892,0.42561512,115600.0,115590.0,0.39428504]
[1758477095089,0.42561512,115600.0,115590.0,0.1225399]
[1758477095290,0.42561512,115600.0,115590.0,0.39428504]
[1758477095793,0.42961512,115600.0,115590.0,1.17908504]
[1758477096194,0.43834678,115600.0,115590.0,1.17908504]
[1758477096496,0.45334678,115600.0,115590.0,1.18008504]
[1758477099895,0.09254678,115600.0,115590.0,1.18008504]
[1758477101498,0.06913799,115600.0,115590.0,1.18008504]
[1758477103297,0.09251499,115600.0,115590.0,1.18008504]
[1758477104995,0.06913799,115600.0,115590.0,1.18008504]
[1758477115608,0.06873799,115600.0,115590.0,1.18008504]
[1758477115809,0.06923799,115600.0,115590.0,1.18008504]
[1758477118515,0.06923799,115600.0,115590.0,0.1235399]
[1758477118705,0.06923799,115600.0,115590.0,1.17972504]
[1758477119111,0.09265483,115600.0,115590.0,1.17972504]
[1758477120010,0.06923799,115600.0,115590.0,1.17972504]
[1758477121114,0.09266653,115600.0,115590.0,1.17972504]
[1758477124620,0.09266653,115600.0,115590.0,1.45117886]
[1758477128523,0.09266653,115600.0,115590.0,1.17957938]
[1758477135942,0.0195,115600.0,115590.0,1.99003517]
[1758477136136,0.0008,115610.0,115600.0,0.1223525]
[1758477136439,0.36098,115630.0,115620.0,0.1223375]
[1758477136635,0.3843039,115630.0,115620.0,1.72133594]
[1758477136835,8e-05,115630.0,115620.0,1.72133594]
[1758477137632,0.01748,115630.0,115620.0,1.72233594]
[1758477137828,0.01708,115630.0,115620.0,1.72233594]
[1758477138134,0.02308,115630.0,115620.0,1.72333594]
[1758477138335,0.03205741,115630.0,115620.0,1.72333594]
[1758477139239,0.02348,115630.0,115620.0,1.54993594]
[1758477139542,0.02308,115630.0,115620.0,2.33405594]
[1758477139938,0.02348,115630.0,115620.0,2.33405594]
[1758477140243,0.02348,115630.0,115620.0,2.06245646]
[1758477140737,0.00148,115630.0,115620.0,2.06545646]
[1758477141243,0.00148,115630.0,115620.0,2.33705594]
[1758477146144,0.00148,115630.0,115620.0,2.06545646]
[1758477146345,0.00148,115630.0,115620.0,2.33705594]
[1758477148338,0.00148,115630.0,115620.0,1.55293594]
[1758477148538,0.00108,115630.0,115620.0,2.33689594]
[1758477148739,0.00148,115630.0,115620.0,2.33689594]
[1758477153648,0.00148,115630.0,115620.0,2.06529646]
[1758477154152,0.00148,115630.0,115620.0,2.33689594]
[1758477155354,0.00148,115630.0,115620.0,2.06529646]
[1758477155546,0.00158,115630.0,115620.0,2.06529646]
[1758477155850,0.00158,115630.0,115620.0,2.06521646]
[1758477159252,0.00158,115630.0,115620.0,1.81521646]
[1758477165362,0.00158,115630.0,115620.0,1.03133646]
[1758477165568,0.00158,115630.0,115620.0,1.81517646]
[1758477171262,0.00158,115630.0,115620.0,0.4881375]
[1758477171460,0.29728853,115630.0,115620.0,1.45433746]
[1758477171860,0.2746,115630.0,115620.0,1.45433746]
[1758477172164,0.29728878,115630.0,115620.0,1.45433746]
[1758477172358,0.2746,115630.0,115620.0,1.45433746]
[1758477179573,0.25158,115630.0,115620.0,1.45433746]
[1758477183971,0.27437,115630.0,115620.0,0.67053746]
[1758477184282,0.27437,115630.0,115620.0,1.45429746]
[1758477186576,0.27437,115630.0,115620.0,1.18255932]
[1758477188775,0.27437,115630.0,115620.0,0.9110985]
[1758477188970,0.27437,115630.0,115620.0,1.18255932]
[1758477192979,0.25158,115630.0,115620.0,1.54335932]
[1758477193275,0.25158,115630.0,115620.0,1.81482014]
[1758477194778,0.25158,115630.0,115620.0,1.2718985]
[1758477194982,0.25158,115630.0,115620.0,1.81482014]
[1758477196873,0.25158,115630.0,115620.0,1.45402014]
[1758477197074,0.25158,115630.0,115620.0,1.81482014]
[1758477200584,0.00118,115630.0,115620.0,2.14216108]
[1758477200787,0.00158,115630.0,115620.0,2.06482014]
[1758477201889,0.00158,115630.0,115620.0,2.06470014]
[1758477209896,0.00158,115630.0,115620.0,2.32860014]
[1758477218704,0.00158,115630.0,115620.0,1.54496014]
[1758477218906,0.00158,115630.0,115620.0,2.32848014]
[1758477219309,0.00158,115630.0,115620.0,2.07848014]
[1758477219502,0.00158,115630.0,115620.0,1.81458014]
[1758477223808,0.00158,115630.0,115620.0,1.89192108]
[1758477228506,0.00158,115630.0,115620.0,1.10840108]
[1758477228811,0.00158,115630.0,115620.0,1.89184108]
[1758477229108,0.00158,115630.0,115620.0,1.10840108]
[1758477229314,0.00158,115630.0,115620.0,1.89184108]
[1758477229713,0.00158,115630.0,115620.0,1.10840108]
[1758477229915,0.00158,115630.0,115620.0,1.89184108]
[1758477234417,0.00158,115630.0,115620.0,1.89180108]
[1758477240616,0.00158,115630.0,115620.0,1.89176108]
[1758477245121,0.00158,115630.0,115620.0,1.81442014]
[1758477245623,0.00158,115630.0,115620.0,2.07828014]
[1758477246123,0.00158,115630.0,115620.0,1.29496014]
[1758477246624,0.00158,115630.0,115620.0,2.34949019]
[1758477249325,0.00158,115630.0,115620.0,1.56617019]
[1758477249525,0.00158,115630.0,115620.0,2.34949019]
[1758477249826,0.00158,115630.0,115620.0,1.56617019]
[1758477250025,0.00158,115630.0,115620.0,2.34949019]
[1758477252524,0.00158,115630.0,115620.0,2.45776751]
[1758477259025,0.0001,115650.0,115640.0,0.1222136]
[1758477259226,0.0437588,115670.0,115660.0,0.1221986]
[1758477259532,0.0436588,115670.0,115660.0,0.9054386]
[1758477259823,0.0440588,115670.0,115660.0,1.2662386]
[1758477260428,0.0500588,115670.0,115660.0,1.2662386]
[1758477261227,0.0064,115670.0,115660.0,1.53761583]
[1758477261424,0.0094,115670.0,115660.0,1.29713029]
[1758477261627,0.009,115670.0,115660.0,1.29713029]
[1758477261825,0.009,115670.0,115660.0,1.81235306]
[1758477261826,0.0094,115670.0,115660.0,1.81235306]
[1758477262025,0.0094,115670.0,115660.0,1.02575306]
[1758477262222,0.0094,115670.0,115660.0,1.81235306]
[1758477262736,0.0094,115670.0,115660.0,1.02575306]
[1758477263037,0.0094,115670.0,115660.0,1.81227306]
[1758477265937,0.0084,115670.0,115660.0,1.81227306]
[1758477266536,0.0074,115670.0,115660.0,1.81227306]
[1758477270234,0.0074,115670.0,115660.0,1.29713029]
[1758477270434,0.0074,115670.0,115660.0,2.08309029]
[1758477270633,0.007,115670.0,115660.0,2.08309029]
[1758477270840,0.0074,115670.0,115660.0,1.29713029]
[1758477271033,0.0074,115670.0,115660.0,2.08305029]
[1758477271935,0.0074,115670.0,115660.0,1.81167306]
[1758477274940,0.0074,115670.0,115660.0,1.02575306]
[1758477275135,0.0074,115670.0,115660.0,1.81147306]
[1758477275841,0.0074,115670.0,115660.0,1.02575306]
[1758477276043,0.0074,115670.0,115660.0,1.81131306]
[1758477279643,0.0074,115670.0,115660.0,1.02575306]
[1758477279844,0.0075,115670.0,115660.0,1.81119306]
[1758477280039,0.0075,115670.0,115660.0,1.02575306]
[1758477280240,0.0075,115670.0,115660.0,1.81107306]
[1758477281038,0.0071,115670.0,115660.0,1.81107306]
[1758477281347,0.0075,115670.0,115660.0,1.81107306]
[1758477282942,0.0075,115670.0,115660.0,1.02575306]
[1758477283142,0.0075,115670.0,115660.0,1.81099306]
[1758477283947,0.0075,115670.0,115660.0,1.81087306]
[1758477285245,0.0075,115670.0,115660.0,2.08225029]
[1758477285644,0.02710221,115680.0,115670.0,0.1209603]
[1758477285852,0.02710221,115680.0,115670.0,1.02451476]
[1758477286151,0.02710221,115680.0,115670.0,1.29589199]
[1758477286352,0.02750221,115680.0,115670.0,2.08109199]
[1758477286553,0.02710221,115680.0,115670.0,2.08109199]
[1758477286753,0.02750221,115680.0,115670.0,2.08109199]
[1758477287146,0.02750221,115680.0,115670.0,1.29589199]
[1758477287351,0.02950221,115680.0,115670.0,2.08109199]
[1758477288052,0.02950221,115680.0,115670.0,2.34499199]
[1758477294157,0.02950221,115680.0,115670.0,1.55979199]
[1758477294658,0.02950221,115680.0,115670.0,2.34455199]
[1758477298153,0.02950221,115680.0,115670.0,1.55979199]
[1758477298356,0.02950221,115680.0,115670.0,2.07301476]
[1758477299658,0.02950221,115680.0,115670.0,2.34439199]
[1758477300159,0.02950221,115680.0,115670.0,2.34431199]
[1758477300358,0.02950221,115680.0,115670.0,1.55979199]
[1758477300560,0.02950221,115680.0,115670.0,2.34427199]
[1758477301659,0.02950221,115680.0,115670.0,2.07289476]
[1758477301857,0.02950221,115680.0,115670.0,1.28841476]
[1758477302060,0.02950221,115680.0,115670.0,2.07281476]
[1758477302363,0.02950221,115680.0,115670.0,1.55979199]
[1758477302563,0.02910221,115680.0,115670.0,1.55979199]
[1758477302768,0.02950221,115680.0,115670.0,2.34415199]
[1758477302959,0.02950221,115680.0,115670.0,1.55979199]
[1758477303160,0.02950221,115680.0,115670.0,2.34415199]
[1758477303966,0.02950221,115680.0,115670.0,1.55979199]
[1758477304466,0.02950221,115680.0,115670.0,2.34407199]
[1758477304654,0.02960221,115680.0,115670.0,2.34407199]
[1758477306370,0.02960221,115680.0,115670.0,1.55979199]
[1758477306564,0.02960221,115680.0,115670.0,2.07208628]
[1758477307168,0.0009,115700.0,115690.0,0.1215952]
[1758477307364,0.0008,115700.0,115690.0,0.75352819]
[1758477307564,0.0008,115700.0,115690.0,1.55532338]
[1758477308070,0.0008,115700.0,115690.0,0.77120338]
[1758477308271,0.0008,115700.0,115690.0,1.55532338]
[1758477308481,0.0018,115700.0,115690.0,1.55528338]
[1758477308873,0.0038,115700.0,115690.0,1.55528338]
[1758477309179,0.0038,115700.0,115690.0,1.55524338]
[1758477310483,0.0038,115700.0,115690.0,1.55516338]
[1758477311381,0.0038,115700.0,115690.0,0.77120338]
[1758477311582,0.02535,115700.0,115690.0,0.05288519]
[1758477311777,0.02535,115700.0,115690.0,0.41040198]
[1758477311971,0.02535,115700.0,115690.0,1.19452198]
[1758477311972,0.27535,115700.0,115690.0,1.19452198]
[1758477312173,0.27535,115700.0,115690.0,0.41040198]
[1758477312575,0.27535,115700.0,115690.0,1.19452198]
[1758477315182,0.29741648,115700.0,115690.0,1.19452198]
[1758477316474,0.27586648,115700.0,115690.0,1.19452198]
[1758477316786,0.27586648,115700.0,115690.0,0.92338899]
[1758477317083,0.27586648,115700.0,115690.0,1.19452198]
[1758477317686,0.2538,115700.0,115690.0,1.55532198]
[1758477325088,0.27582524,115700.0,115690.0,1.55532198]
[1758477328896,0.27582524,115700.0,115690.0,0.77120198]
[1758477329200,0.27592524,115700.0,115690.0,1.55484198]
[1758477331702,0.0039,115700.0,115690.0,1.55484198]
[1758477332097,0.0031,115700.0,115690.0,1.55484198]
[1758477332298,0.0035,115700.0,115690.0,1.55484198]
[1758477337903,0.0035,115700.0,115690.0,1.91564198]
[1758477338098,0.0035,115700.0,115690.0,1.97744069]
[1758477339103,0.0035,115700.0,115690.0,1.10741689]
[1758477339600,0.02558,115700.0,115690.0,0.8362839]
[1758477340100,0.02558,115700.0,115690.0,1.82953818]
[1758477340701,0.02558,115700.0,115690.0,1.91592078]
[1758477342303,0.02558,115700.0,115690.0,1.19432078]
[1758477343006,0.02558,115700.0,115690.0,1.10793818]
[1758477343505,0.02558,115700.0,115690.0,1.19432068]
[1758477343808,0.02558,115700.0,115690.0,1.55512068]
[1758477344306,0.02558,115700.0,115690.0,1.46873818]
[1758477346400,0.02558,115700.0,115690.0,1.55512018]
[1758477346707,0.0035,115700.0,115690.0,1.55512018]
[1758477347509,0.0035,115700.0,115690.0,1.19432018]
[1758477347711,0.0035,115700.0,115690.0,1.55512018]
[1758477357410,0.0035,115700.0,115690.0,1.28398719]
[1758477357611,0.0035,115700.0,115690.0,1.55512018]
[1758477360918,0.0035,115700.0,115690.0,1.82625317]
[1758477361619,0.0031,115700.0,115690.0,1.55512018]